bitfinex-derivatives/quotes_BNBF0:USTF0_20251010
["timestamp","ask_amount","ask_price","bid_price","bid_amount"]
[1760134378044,5.15956221,1094.8,1082.8,1.7086051]
[1760134378249,2.85901902,1094.8,1082.8,1.7086051]
[1760134378446,5.00051757,1094.8,1082.9,1.7086051]
[1760134378649,6.42449575,1094.7,1082.9,1.7086051]
[1760134378849,6.42449575,1094.7,1084.2,1.02935336]
[1760134379144,4.2829972,1094.7,1084.4,1.02935336]
[1760134379344,2.14149855,1094.4,1084.1,1.02935336]
[1760134379548,2.65021966,1094.3,1083.9,1.02935336]
[1760134379746,2.14149855,1094.3,1083.8,1.02935336]
[1760134379947,2.14149855,1094.4,1084.0,1.02935336]
[1760134380246,2.64257953,1094.3,1084.0,1.02935336]
[1760134380449,2.14149855,1094.3,1084.1,1.02935336]
[1760134380652,2.14149855,1094.4,1084.1,1.02935336]
[1760134380848,2.14149855,1094.1,1082.6,1.7086051]
[1760134381052,2.14149855,1094.3,1082.6,1.7086051]
[1760134381449,2.14149855,1093.9,1081.9,1.7086051]
[1760134381950,2.69710134,1093.8,1081.9,1.7086051]
[1760134382352,1.2848991,1093.8,1081.9,1.7086051]
[1760134382553,1.2848991,1093.7,1085.4,0.51609828]
[1760134382753,1.2848991,1093.7,1082.8,1.7086051]
[1760134382754,1.2848991,1093.8,1085.5,0.94916754]
[1760134382952,1.2848991,1094.0,1085.7,0.51609828]
[1760134383249,1.2848991,1094.7,1086.5,0.51609828]
[1760134383450,1.2848991,1094.7,1083.7,1.7086051]
[1760134383451,1.2848991,1095.6,1087.4,0.51609828]
[1760134383653,1.2848991,1095.8,1087.5,0.94916754]
[1760134383949,1.2848991,1095.4,1087.6,0.43306926]
[1760134384255,1.2848991,1095.4,1086.8,0.68813104]
[1760134384256,1.2848991,1094.4,1086.3,0.51609828]
[1760134384450,2.15860416,1094.1,1084.8,0.68813104]
[1760134384749,1.99956752,1093.5,1084.1,0.68813104]
[1760134384952,4.18324885,1093.5,1084.1,0.68813104]
[1760134385153,3.46858043,1093.6,1084.3,0.68813104]
[1760134385455,1.2848991,1093.3,1084.0,0.68813104]
[1760134385650,3.46858043,1093.4,1084.0,0.68813104]
[1760134385855,1.2848991,1093.3,1084.0,0.68813104]
[1760134386156,2.18368133,1093.4,1083.8,0.68813104]
[1760134386457,6.52639206,1094.1,1084.7,0.68813104]
[1760134386658,5.24149296,1094.5,1085.2,0.68813104]
[1760134386861,6.52639206,1094.5,1085.2,0.68813104]
[1760134387161,1.2848991,1094.7,1085.3,0.68813104]
[1760134387358,3.05781163,1094.8,1085.7,0.68813104]
[1760134387558,6.52639206,1095.4,1086.1,0.68813104]
[1760134387862,6.52639206,1095.4,1085.7,0.68813104]
[1760134387863,1.2848991,1095.2,1085.7,0.68813104]
[1760134388158,1.2848991,1095.1,1085.6,0.68813104]
[1760134388460,5.65161794,1095.0,1085.8,0.68813104]
[1760134388660,4.34271073,1094.6,1085.4,0.68813104]
[1760134388859,1.2848991,1094.5,1085.3,0.68813104]
[1760134389062,3.05781163,1094.6,1086.3,0.52614598]
[1760134389358,3.05781163,1095.2,1086.9,0.52614598]
[1760134389562,4.36671884,1095.3,1087.1,0.52614598]
[1760134389765,7.42453047,1095.6,1087.3,0.52614598]
[1760134389958,1.2848991,1095.9,1087.5,0.52614598]
[1760134390162,1.2848991,1095.7,1087.4,0.52614598]
[1760134390362,1.2848991,1095.4,1087.2,0.52614598]
[1760134390662,3.05781163,1096.5,1086.9,0.52614598]
[1760134390663,1.2848991,1095.2,1086.9,0.52614598]
[1760134390861,3.05781163,1096.5,1087.2,0.52614598]
[1760134391060,3.05781163,1094.9,1086.7,0.52614598]
[1760134391263,3.05781163,1094.9,1086.2,0.52614598]
[1760134391463,3.05781163,1094.9,1085.6,0.52614598]
[1760134391868,3.05781163,1094.9,1085.2,0.52614598]
[1760134392164,7.42453047,1093.2,1085.1,0.52614598]
[1760134392364,7.42453047,1093.2,1085.0,0.52614598]
[1760134392659,7.42453047,1093.2,1085.1,0.52614598]
[1760134392961,7.42453047,1094.8,1086.6,0.52614598]
[1760134393162,7.42453047,1094.8,1086.4,0.52614598]
[1760134393361,7.42453047,1094.8,1086.5,0.52614598]
[1760134393562,7.42453047,1094.8,1086.0,1.03219656]
[1760134393563,7.42453047,1095.4,1087.2,0.52614598]
[1760134393759,7.26566481,1095.4,1087.0,0.52614598]
[1760134393964,7.26566481,1095.4,1086.4,0.52614598]
[1760134394262,7.26566481,1095.4,1086.2,0.52614598]
[1760134394462,3.05781163,1094.3,1086.1,0.52614598]
[1760134394761,3.05781163,1094.3,1086.2,0.52614598]
[1760134395267,3.05781163,1094.3,1085.9,0.54511442]
[1760134395666,3.05781163,1094.3,1085.7,0.54511442]
[1760134395867,3.05781163,1094.3,1085.9,0.54511442]
[1760134396065,3.05781163,1094.8,1086.6,0.54511442]
[1760134396265,3.05781163,1095.2,1087.0,0.54511442]
[1760134396469,3.05781163,1095.2,1086.8,0.54511442]
[1760134396769,2.89900469,1095.4,1087.3,0.54511442]
[1760134396966,2.18218056,1095.7,1087.5,0.54511442]
[1760134397574,2.18218056,1095.9,1087.6,0.54511442]
[1760134398164,2.18218056,1095.9,1087.1,0.54511442]
[1760134398568,2.18218056,1096.0,1087.6,0.54511442]
[1760134398968,2.18218056,1096.0,1087.5,0.54511442]
[1760134399168,2.18218056,1095.9,1087.5,0.54511442]
[1760134399471,2.18218056,1096.1,1087.7,0.54511442]
[1760134399772,2.02346524,1096.1,1087.7,0.54511442]
[1760134399970,6.8527956,1098.7,1087.7,0.54511442]
[1760134400169,6.8527956,1098.7,1087.6,0.54511442]
[1760134400673,6.8527956,1098.7,1087.1,0.54511442]
[1760134400871,6.8527956,1098.7,1087.0,0.54511442]
[1760134401072,0.15871459,1098.6,1087.0,0.54511442]
[1760134401372,4.36618684,1094.9,1086.7,0.5431894]
[1760134401568,4.36618684,1095.5,1087.0,0.5431894]
[1760134401770,4.36618684,1095.5,1086.4,0.5431894]
[1760134401971,4.36618684,1095.5,1086.5,0.45840799]
[1760134402174,4.36618684,1095.5,1085.8,0.5431894]
[1760134402370,4.36618684,1095.5,1085.9,1.00134663]
[1760134402574,4.36618684,1095.5,1086.0,0.45815723]
[1760134402769,4.36618684,1095.5,1086.1,1.00134663]
[1760134403071,4.36618684,1095.5,1084.5,0.68813104]
[1760134403375,6.8527956,1094.9,1084.9,0.68813104]
[1760134403575,11.21898244,1094.4,1085.2,0.68813104]
[1760134404075,11.05995815,1094.4,1085.4,0.54000856]
[1760134404271,11.05995815,1094.4,1085.0,0.54000856]
[1760134404474,11.05995815,1094.4,1085.1,0.54000856]
[1760134404675,11.05995815,1094.4,1085.0,0.54000856]
[1760134404975,3.05690086,1093.5,1084.7,0.54000856]
[1760134405175,3.05690086,1093.5,1085.4,0.54000856]
[1760134405471,3.05690086,1093.9,1086.0,0.54000856]
[1760134405677,3.05690086,1093.9,1085.7,0.54000856]
[1760134405978,6.69377131,1094.4,1085.6,0.54000856]
[1760134406476,6.69377131,1094.4,1085.3,0.54000856]
[1760134406676,6.69377131,1094.4,1085.4,0.54000856]
[1760134406874,3.05690086,1093.3,1085.1,0.54000856]
[1760134407077,3.05690086,1093.3,1085.0,0.54000856]
[1760134407276,2.89777841,1093.3,1085.2,0.54000856]
[1760134407473,2.89777841,1093.3,1085.3,0.54000856]
[1760134407675,6.69377131,1094.4,1085.6,0.54000856]
[1760134408174,6.69377131,1094.4,1085.4,0.68813104]
[1760134408478,6.69377131,1094.4,1083.3,2.3920472]
[1760134411080,4.3904886,1095.7,1088.1,0.52909857]
[1760134411280,4.3904886,1095.7,1088.2,0.6145251]
[1760134411480,4.3904886,1095.7,1088.3,0.6145251]
[1760134411682,4.3904886,1095.7,1088.4,0.61264966]
[1760134411877,4.3904886,1095.7,1088.5,0.61264966]
[1760134412082,7.0247818,1097.0,1087.4,0.52909857]
[1760134412379,8.7809773,1098.0,1087.5,1.09501443]
[1760134412577,8.7809773,1098.0,1087.7,0.52909857]
[1760134412878,4.3904886,1095.8,1087.9,0.52909857]
[1760134413181,2.19094826,1095.6,1088.5,0.52909857]
[1760134413480,2.19094826,1095.6,1088.0,1.7636619]
[1760134413481,2.19094826,1095.6,1088.6,0.50301625]
[1760134413681,4.3904886,1098.5,1088.7,0.50301625]
[1760134413876,4.3904886,1098.5,1088.4,0.52909857]
[1760134413877,4.3904886,1096.5,1089.1,0.52909857]
[1760134414079,4.3904886,1096.5,1089.2,0.50301625]
[1760134414276,4.3904886,1096.5,1088.8,0.52909857]
[1760134414479,4.3904886,1096.5,1088.9,1.03437805]
[1760134414781,4.3904886,1096.5,1089.4,0.52909857]
[1760134415076,4.3904886,1096.5,1089.1,0.52909857]
[1760134415277,4.3904886,1096.5,1088.5,0.52909857]
[1760134415581,3.0664315,1096.0,1088.6,0.49673178]
[1760134415777,3.0664315,1096.0,1088.2,0.52909857]
[1760134415983,4.3904886,1095.8,1087.4,0.52909857]
[1760134416177,3.0664315,1096.0,1087.7,0.52909857]
[1760134416382,3.0664315,1096.0,1087.8,0.49710409]
[1760134416682,3.0664315,1096.0,1087.6,0.52909857]
[1760134416683,3.0664315,1094.7,1087.3,0.52909857]
[1760134416882,3.0664315,1094.7,1087.5,0.52909857]
[1760134417080,3.0664315,1095.1,1087.7,0.52909857]
[1760134417283,3.0664315,1095.1,1087.4,0.52909857]
[1760134417483,3.0664315,1095.1,1087.3,0.52909857]
[1760134417684,3.0664315,1095.1,1087.3,0.50726101]
[1760134418186,3.0664315,1095.1,1086.9,0.70546476]
[1760134418387,1.3207031,1093.5,1085.8,0.53492201]
[1760134418682,1.3207031,1093.0,1085.6,0.46431015]
[1760134418885,3.0664315,1093.4,1086.0,0.53492201]
[1760134419189,2.2028634,1092.8,1085.1,0.53492201]
[1760134419484,2.2028634,1093.3,1085.5,0.53492201]
[1760134419789,5.2692949,1093.1,1085.3,0.53492201]
[1760134420088,2.2028634,1092.8,1084.9,0.53492201]
[1760134420385,1.3207031,1092.7,1085.1,0.53492201]
[1760134420688,1.3207031,1092.7,1085.2,0.46209338]
[1760134420889,2.90728504,1092.9,1085.4,0.53492201]
[1760134421189,5.7111917,1093.3,1085.7,0.53492201]
[1760134421389,4.3904886,1093.3,1084.4,2.46912666]
[1760134421687,2.20129402,1093.0,1084.1,0.70546476]
[1760134421889,6.59178262,1093.3,1084.4,0.70546476]
[1760134422086,2.20129402,1093.1,1084.2,0.70546476]
[1760134422589,4.4038085,1093.1,1084.1,0.70546476]
[1760134422886,2.20129402,1092.9,1083.9,0.70546476]
[1760134423088,4.4038085,1092.8,1083.7,0.70546476]
[1760134423386,2.20129402,1092.4,1083.4,0.70546476]
[1760134423586,4.4038085,1092.3,1083.3,0.70546476]
[1760134423789,2.20129402,1092.2,1083.2,0.70546476]
[1760134423990,2.20129402,1092.2,1082.0,1.7636619]
[1760134423991,4.4038085,1092.4,1083.6,0.70546476]
[1760134424189,4.4038085,1092.4,1083.3,1.0581971]
[1760134424190,2.20129402,1092.2,1083.3,0.70546476]
[1760134424390,2.20129402,1092.2,1083.2,0.70546476]
[1760134424587,4.4038085,1092.1,1083.1,0.70546476]
[1760134425187,4.4038085,1092.6,1083.6,0.70546476]
[1760134425390,8.7942971,1092.6,1084.5,0.5493146]
[1760134425787,6.59300308,1092.6,1084.6,0.5493146]
[1760134425988,8.7942971,1092.6,1084.3,0.5493146]
[1760134426191,4.3904886,1092.6,1084.5,0.5493146]
[1760134426389,4.24465803,1093.3,1085.0,0.5493146]
[1760134426593,3.0831054,1093.4,1085.1,0.5493146]
[1760134426794,0.88059092,1092.9,1084.7,0.5493146]
[1760134426990,3.0831054,1092.9,1084.7,0.5493146]
[1760134427191,2.20251448,1092.9,1084.8,0.5493146]
[1760134427495,4.3904886,1093.8,1085.1,0.5493146]
[1760134427496,3.0831054,1093.2,1085.1,0.5493146]
[1760134427895,0.88059092,1093.0,1084.9,0.53944704]
[1760134428091,0.88059092,1093.1,1084.9,0.53944704]
[1760134428392,3.0831054,1093.0,1084.6,0.53944704]
[1760134428590,2.20251448,1093.0,1084.7,0.53944704]
[1760134428793,3.0831054,1093.1,1084.7,0.53944704]
[1760134428993,3.96029022,1093.0,1084.6,0.53944704]
[1760134429192,7.4701879,1093.0,1084.7,0.53944704]
[1760134429391,7.4701879,1093.0,1084.9,0.53944704]
[1760134429595,10.5532933,1093.3,1085.0,0.53944704]
[1760134429896,10.5532933,1093.3,1084.5,0.53944704]
[1760134429897,0.88059092,1092.9,1084.5,0.53944704]
[1760134430096,3.0831054,1092.9,1084.5,0.53944704]
[1760134430391,3.0831054,1093.1,1085.0,0.53944704]
[1760134430599,10.5532933,1093.3,1085.2,0.53944704]
[1760134430892,0.88059092,1093.2,1085.1,0.53944704]
[1760134431097,10.5532933,1093.6,1085.6,0.53944704]
[1760134431297,0.88059092,1093.3,1085.3,0.53944704]
[1760134431597,7.4701879,1093.6,1085.3,0.53944704]
[1760134431893,8.35077882,1093.6,1085.2,0.53944704]
[1760134432097,6.1628047,1093.4,1085.0,0.53944704]
[1760134432397,0.88059092,1093.3,1085.1,0.53944704]
[1760134432593,3.0831054,1093.3,1085.0,0.53944704]
[1760134432798,3.0831054,1093.3,1085.1,0.53944704]
[1760134432994,0.88059092,1092.9,1084.7,0.53944704]
[1760134433196,10.5532933,1092.9,1084.8,0.53944704]
[1760134433395,9.67270238,1092.9,1084.8,0.53944704]
[1760134433698,9.51363085,1092.9,1084.8,0.53944704]
[1760134433900,3.96029022,1094.2,1086.1,0.53499136]
[1760134434198,0.88059092,1093.5,1085.5,0.53499136]
[1760134434396,0.88059092,1093.8,1085.6,0.53499136]
[1760134434596,0.88059092,1093.8,1085.5,0.53499136]
[1760134434796,0.88059092,1094.0,1085.7,0.53499136]
[1760134434995,3.96029022,1094.2,1085.9,0.53499136]
[1760134435194,0.88059092,1093.9,1085.6,0.53499136]
[1760134435394,0.88059092,1094.1,1085.8,0.53499136]
[1760134435594,3.96029022,1094.2,1086.3,0.53499136]
[1760134435796,3.96029022,1094.7,1086.8,0.53499136]
[1760134435993,3.0796993,1094.7,1086.9,0.53499136]
[1760134436197,3.0796993,1094.7,1086.8,0.53499136]
[1760134436398,3.96029022,1094.7,1086.8,0.53499136]
[1760134436593,3.96029022,1094.7,1086.6,0.53499136]
[1760134436799,3.0796993,1094.7,1086.6,0.53499136]
[1760134437099,3.0796993,1094.9,1086.8,0.53499136]
[1760134437296,8.35077882,1095.2,1087.1,0.53499136]
[1760134437496,8.35077882,1095.2,1086.8,0.53499136]
[1760134437700,0.88059092,1095.1,1086.7,0.53499136]
[1760134437996,0.88059092,1094.9,1086.6,0.53499136]
[1760134438196,0.88059092,1094.8,1086.4,0.53499136]
[1760134438399,3.96029022,1094.7,1086.3,0.53499136]
[1760134438598,0.88059092,1094.4,1084.6,0.15887618]
[1760134438799,1.50584829,1094.3,1084.6,0.15887618]
[1760134439101,0.88059092,1094.5,1084.6,0.15887618]
[1760134439302,0.88059092,1094.6,1084.6,0.15887618]
[1760134439604,3.96029022,1094.9,1084.6,0.15887618]
[1760134439801,7.4701879,1094.9,1084.6,0.15887618]
[1760134440006,0.88059092,1094.7,1084.6,0.15887618]
[1760134440302,8.35077882,1094.9,1084.6,0.15887618]
[1760134440503,7.4701879,1094.9,1084.6,0.15887618]
[1760134440705,3.96029022,1094.7,1084.6,0.15887618]
[1760134441005,0.88059092,1094.2,1084.6,0.15887618]
[1760134441204,0.60982125,1094.1,1084.6,0.15887618]
[1760134441403,0.88059092,1093.5,1084.6,0.15887618]
[1760134441604,0.88059092,1093.3,1084.6,0.15887618]
[1760134441807,3.96029022,1092.9,1084.6,0.15887618]
[1760134442007,0.88059092,1092.1,1084.6,0.15887618]
[1760134442204,0.88059092,1091.8,1084.6,0.15887618]
[1760134442508,0.88059092,1092.1,1084.6,0.15887618]
[1760134442808,3.08162542,1092.1,1084.6,0.15887618]
[1760134443004,5.2807338,1092.1,1084.6,0.15887618]
[1760134443204,10.55181332,1092.8,1084.6,0.15887618]
[1760134443406,8.62179371,1093.5,1085.3,0.5434346]
[1760134443708,8.62179371,1093.5,1085.1,0.72457947]
[1760134443709,8.62179371,1093.5,1085.1,0.5434346]
[1760134443906,8.62179371,1093.5,1085.2,0.5434346]
[1760134444309,3.96029022,1092.8,1084.3,0.5434346]
[1760134444509,0.88059092,1092.2,1081.1,1.78200848]
[1760134444709,0.88059092,1092.2,1082.4,1.09410528]
[1760134445005,6.16132472,1092.8,1083.0,1.09410528]
[1760134445210,3.0796993,1092.8,1083.2,1.09410528]
[1760134445706,3.0796993,1092.8,1082.3,1.78200848]
[1760134445905,8.62179371,1093.5,1056.2,9.8765066]
[1760134446206,0.87877554,1093.8,1083.8,1.09682402]
[1760134446409,2.1974961,1093.6,1083.8,1.09682402]
[1760134446610,4.89866026,1093.5,1083.8,1.09682402]
[1760134446807,2.1974961,1093.3,1083.6,1.09682402]
[1760134447109,7.47014937,1093.4,1082.6,1.98735262]
[1760134447310,2.72794096,1093.3,1082.6,0.15931258]
[1760134447507,7.47014937,1093.6,1082.6,0.15931258]
[1760134448010,2.1974961,1093.3,1083.7,1.10822056]
[1760134448306,3.07571441,1093.4,1083.6,1.10822056]
[1760134448506,4.39387773,1093.6,1083.9,1.10822056]
[1760134448704,9.666531,1094.0,1084.6,1.10822056]
[1760134448907,7.46959214,1094.0,1084.6,1.10822056]
[1760134449107,7.46959214,1094.0,1085.8,0.55133266]
[1760134449312,7.46959214,1094.0,1085.9,0.55133266]
[1760134449508,11.8640271,1094.3,1086.0,0.55133266]
[1760134449711,7.46959214,1094.3,1086.0,0.55133266]
[1760134449911,7.46959214,1094.3,1086.1,0.55133266]
[1760134450207,11.8640271,1094.3,1085.9,0.55133266]
[1760134450408,2.1974961,1093.7,1085.2,0.55133266]
[1760134450611,2.1974961,1093.2,1084.9,0.55133266]
[1760134450807,2.1974961,1093.2,1084.5,1.10822056]
[1760134450808,2.1974961,1092.6,1084.1,0.55133266]
[1760134451011,2.1974961,1092.3,1083.8,0.55133266]
[1760134451412,2.1974961,1092.3,1083.5,0.73511021]
[1760134451614,4.39443496,1093.1,1084.6,0.55313998]
[1760134451814,4.39443496,1093.1,1082.6,0.15931258]
[1760134451815,11.41921676,1093.1,1084.7,0.55313998]
[1760134452012,12.29743507,1093.6,1085.3,0.55313998]
[1760134452210,14.49493117,1093.6,1085.3,0.55313998]
[1760134452513,2.1974961,1093.4,1084.9,0.55313998]
[1760134452708,2.1974961,1093.3,1084.7,0.55313998]
[1760134452911,10.10049621,1093.6,1085.2,0.55313998]
[1760134453114,5.27321051,1093.5,1085.1,0.55313998]
[1760134453311,5.27321051,1093.5,1084.8,0.73511021]
[1760134453312,5.27321051,1093.5,1084.9,0.55313998]
[1760134453512,4.39443496,1092.7,1082.7,1.82804004]
[1760134453810,2.1974961,1092.4,1082.6,0.15931258]
[1760134454114,5.27321051,1091.7,1082.6,0.15931258]
[1760134454315,3.07571441,1091.7,1082.6,0.15931258]
[1760134454614,2.1974961,1091.1,1082.6,0.70205418]
[1760134454815,3.07571441,1091.7,1083.3,0.5427416]
[1760134455115,8.79534011,1091.8,1083.5,0.5427416]
[1760134455316,8.79534011,1091.8,1083.6,0.5427416]
[1760134455511,8.79534011,1091.8,1082.6,0.15931258]
[1760134455712,0.56374139,1091.7,1082.6,0.15931258]
[1760134455911,2.1974961,1091.1,1082.6,0.15931258]
[1760134456114,2.1974961,1090.9,1082.6,0.15931258]
[1760134456314,7.47014937,1091.1,1082.6,0.15931258]
[1760134456610,5.27265327,1091.1,1082.6,0.15931258]
[1760134456918,7.47014937,1091.7,1082.6,0.15931258]
[1760134457516,8.79534011,1091.8,1082.7,0.71386831]
[1760134457711,10.99283621,1091.8,1082.6,0.15931258]
[1760134457911,8.79534011,1091.8,1082.6,0.87318089]
[1760134458116,18.8888089,1092.4,1083.0,0.71386831]
[1760134458313,16.6913128,1092.4,1083.1,0.71386831]
[1760134458513,2.1974961,1092.3,1082.8,0.71386831]
[1760134458713,16.6913128,1092.4,1082.6,0.15931258]
[1760134458714,2.1974961,1091.9,1082.6,0.15931258]
[1760134458912,2.1974961,1091.6,1082.6,0.15931258]
[1760134459113,7.47014937,1090.9,1082.6,0.15931258]
[1760134459412,2.1974961,1090.5,1082.6,0.15931258]
[1760134459613,4.39443496,1090.3,1082.6,0.15931258]
[1760134459813,2.1974961,1089.9,1082.6,0.15931258]
[1760134460015,2.1974961,1089.8,1082.6,0.15931258]
[1760134460218,3.07571441,1090.9,1082.6,0.15931258]
[1760134460219,7.47014937,1090.2,1082.6,0.15931258]
[1760134460419,2.1974961,1091.0,1082.6,0.15931258]
[1760134460617,7.47014937,1091.1,1082.6,0.15931258]
[1760134460818,11.8640271,1091.4,1082.6,0.15931258]
[1760134461019,11.8640271,1091.7,1082.6,0.15931258]
[1760134461215,2.1974961,1091.1,1082.6,0.15931258]
[1760134461416,2.1974961,1091.3,1082.6,0.15931258]
[1760134461920,2.1974961,1091.0,1082.6,0.15931258]
[1760134462220,4.39443496,1090.4,1082.6,0.15931258]
[1760134462420,2.1974961,1090.1,1082.6,0.15931258]
[1760134462620,2.1974961,1090.2,1082.6,0.15931258]
[1760134462817,4.39443496,1090.4,1082.6,0.15931258]
[1760134463016,2.1974961,1090.3,1082.6,0.15931258]
[1760134463217,2.1974961,1090.0,1082.6,0.15931258]
[1760134463418,4.39443496,1089.9,1082.6,0.15931258]
[1760134464420,7.46959214,1090.3,1082.6,0.15931258]
[1760134464719,7.46959214,1090.7,1082.6,0.15931258]
[1760134465122,11.8640271,1091.0,1082.6,0.15931258]
[1760134465320,11.8640271,1091.5,1082.6,0.15931258]
[1760134465519,9.66708824,1091.5,1082.6,0.15931258]
[1760134465722,18.8888089,1092.0,1082.6,0.15931258]
[1760134465923,2.1974961,1091.7,1082.6,0.15931258]
[1760134466123,2.1974961,1091.8,1082.6,0.15931258]
[1760134466321,2.1974961,1091.7,1082.6,0.15931258]
[1760134466520,2.19693886,1091.8,1082.6,0.15931258]
[1760134466521,2.1974961,1091.3,1082.6,0.15931258]
[1760134466920,7.47014937,1091.9,1082.6,0.15931258]
[1760134467223,2.1974961,1091.6,1082.6,0.15931258]
[1760134467418,4.39443496,1091.7,1082.6,0.15931258]
[1760134467623,3.07571441,1091.9,1082.6,0.15931258]
[1760134468019,5.27321051,1091.9,1082.6,0.15931258]
[1760134468225,7.47014937,1091.9,1082.6,0.15931258]
[1760134468422,5.27265327,1091.9,1082.6,0.15931258]
[1760134468623,3.07571441,1091.9,1082.6,0.15931258]
[1760134468823,2.1974961,1091.7,1082.6,0.15931258]
[1760134469021,7.47014937,1091.8,1082.6,0.15931258]
[1760134469322,2.19693886,1091.9,1082.6,0.15931258]
[1760134469526,2.1974961,1091.0,1082.6,0.15931258]
[1760134470026,2.19693886,1091.1,1082.6,0.15931258]
[1760134470027,6.59137383,1090.8,1082.6,0.15931258]
[1760134470222,4.39443496,1090.6,1082.6,0.15931258]
[1760134470425,3.07571441,1090.2,1082.6,0.15931258]
[1760134470625,2.1974961,1089.9,1082.6,0.15931258]
[1760134470823,2.19693886,1090.0,1082.6,0.15931258]
[1760134471027,3.07571441,1090.2,1082.6,0.15931258]
[1760134471228,2.1974961,1090.0,1082.6,0.15931258]
[1760134471527,7.47014937,1090.4,1082.6,0.15931258]
[1760134472024,2.1974961,1090.2,1082.6,0.15931258]
[1760134472228,5.27265327,1090.4,1082.6,0.15931258]
[1760134472229,2.1974961,1089.7,1082.6,0.15931258]
[1760134472528,2.1974961,1089.8,1082.6,0.15931258]
[1760134472826,11.8640271,1090.4,1082.6,0.15931258]
[1760134473025,7.46959214,1090.4,1082.6,0.15931258]
[1760134473225,18.8888089,1091.0,1082.6,0.15931258]
[1760134473528,2.1974961,1091.2,1082.6,0.15931258]
[1760134473829,13.18977507,1091.2,1082.6,0.15931258]
[1760134474029,8.79534011,1091.2,1082.6,0.15931258]
[1760134475131,7.0247818,1091.5,1082.6,0.15931258]
[1760134475332,2.1974961,1091.3,1082.6,0.15931258]
[1760134475532,2.1974961,1091.0,1082.6,0.15931258]
[1760134475828,2.1974961,1090.5,1082.6,0.15931258]
[1760134476331,2.1974961,1090.1,1082.6,0.15931258]
[1760134476527,4.39443496,1090.1,1082.6,0.15931258]
[1760134476728,2.1974961,1089.8,1082.6,0.15931258]
[1760134476931,2.1974961,1089.9,1082.6,0.15931258]
[1760134477130,11.8640271,1090.0,1082.6,0.15931258]
[1760134477332,0.62638984,1089.9,1082.6,0.15931258]
[1760134477529,9.666531,1090.0,1082.6,0.15931258]
[1760134477732,7.46959214,1090.0,1082.6,0.15931258]
[1760134477934,2.1974961,1089.8,1082.6,0.15931258]
[1760134478129,7.47014937,1089.9,1082.6,0.15931258]
[1760134478433,3.07571441,1089.9,1082.6,0.15931258]
[1760134478629,0.49855018,1089.8,1082.6,0.15931258]
[1760134478830,2.1974961,1089.5,1082.6,0.15931258]
[1760134479034,2.1974961,1089.2,1082.6,0.15931258]
[1760134479334,2.1974961,1088.7,1082.6,0.15931258]
[1760134479630,4.39443496,1088.4,1082.6,0.15931258]
[1760134479834,4.39443496,1088.7,1082.6,0.15931258]
[1760134480034,2.19693886,1088.8,1082.6,0.15931258]
[1760134480236,7.47014937,1088.9,1082.6,0.15931258]
[1760134480430,3.07571441,1088.9,1082.6,0.15931258]
[1760134480632,4.39387773,1089.0,1082.6,0.15931258]
[1760134480837,6.59137383,1089.0,1082.6,0.15931258]
[1760134481131,2.1974961,1088.8,1082.6,0.15931258]
[1760134481332,4.39387773,1089.0,1082.6,0.15931258]
[1760134481333,4.39443496,1088.7,1082.6,0.15931258]
[1760134481532,2.1974961,1088.8,1082.6,0.15931258]
[1760134481836,6.59081659,1088.9,1082.6,0.15931258]
[1760134481837,5.27321051,1088.5,1082.6,0.15931258]
[1760134482336,3.07571441,1088.5,1082.6,0.15931258]
[1760134482636,2.1974961,1088.1,1082.6,0.15931258]
[1760134482836,2.1974961,1087.9,1082.6,0.15931258]
[1760134483034,2.1974961,1087.7,1082.6,0.15931258]
[1760134483432,7.47014937,1088.3,1082.6,0.15931258]
[1760134483632,2.1974961,1087.9,1082.6,0.15931258]
[1760134483834,4.39443496,1088.1,1082.6,0.15931258]
[1760134484034,6.59137383,1087.8,1082.6,0.15931258]
[1760134484233,2.1974961,1087.5,1082.6,0.15931258]
[1760134484438,2.1974961,1087.3,1082.6,0.15931258]
[1760134484839,3.07571441,1087.5,1082.6,0.15931258]
[1760134485033,4.39387773,1087.8,1082.6,0.15931258]
[1760134485442,9.666531,1088.0,1082.6,0.15931258]
[1760134485638,7.46959214,1088.0,1082.6,0.15931258]
[1760134485840,7.0247818,1088.2,1082.6,0.15931258]
[1760134486041,2.7900702,1088.1,1082.6,0.15931258]
[1760134486341,7.0247818,1088.2,1082.6,0.15931258]
[1760134487040,8.79534011,1088.5,1082.6,0.15931258]
[1760134487241,7.0247818,1088.7,1082.6,0.15931258]
[1760134487440,18.46242835,1089.1,1082.6,0.15931258]
[1760134487638,2.8323239,1089.0,1082.6,0.15931258]
[1760134488241,1.31872056,1089.0,1082.6,0.15931258]
[1760134488436,5.14469407,1088.9,1082.6,0.15931258]
[1760134488642,2.94797996,1088.8,1082.6,0.15931258]
[1760134488839,7.4161298,1088.9,1082.6,0.15931258]
[1760134489041,8.79534011,1089.1,1082.6,0.15931258]
[1760134489239,2.94759527,1089.0,1082.6,0.15931258]
[1760134489442,2.94759527,1088.9,1082.6,0.15931258]
[1760134489739,4.34041539,1088.9,1082.6,0.15931258]
[1760134489939,2.14347653,1088.9,1082.6,0.15931258]
[1760134490137,2.14347653,1088.8,1082.6,0.15931258]
[1760134490338,4.34041539,1088.9,1082.6,0.15931258]
[1760134490539,2.19693886,1088.9,1082.6,0.15931258]
[1760134490739,8.79534011,1089.1,1082.6,0.15931258]
[1760134491037,18.83478933,1089.9,1082.6,0.15931258]
[1760134491243,14.49437394,1089.9,1082.6,0.15931258]
[1760134491645,9.16825833,1089.9,1082.6,0.15931258]
[1760134491842,7.0247818,1089.9,1082.6,0.15931258]
[1760134492047,11.81000753,1090.5,1082.6,0.15931258]
[1760134492249,7.0247818,1090.7,1082.6,0.15931258]
[1760134492445,7.46959214,1090.8,1082.6,0.15931258]
[1760134492649,11.81000753,1091.1,1082.6,0.15931258]
[1760134492844,2.14347653,1090.6,1082.6,0.15931258]
[1760134493048,2.14347653,1090.7,1082.6,0.15931258]
[1760134493248,4.34041539,1091.0,1082.6,0.15931258]
[1760134493446,2.14347653,1090.9,1082.6,0.15931258]
[1760134493646,11.81000753,1091.1,1082.6,0.15931258]
[1760134493846,7.46959214,1091.1,1082.6,0.15931258]
[1760134494145,7.4161298,1091.7,1082.6,0.15931258]
[1760134494446,2.14347653,1091.5,1082.6,0.15931258]
[1760134494644,2.14347653,1091.8,1082.6,0.15931258]
[1760134494948,11.81000753,1092.3,1082.6,0.15931258]
[1760134495345,7.4161298,1092.6,1082.6,0.15931258]
[1760134495547,2.14347653,1092.4,1082.6,0.15931258]
[1760134495849,4.34041539,1091.7,1082.6,0.15931258]
[1760134496049,2.14347653,1091.6,1082.6,0.15931258]
[1760134496446,7.4161298,1091.8,1082.6,0.15931258]
[1760134497051,5.27265327,1091.8,1082.6,0.15931258]
[1760134497348,7.0247818,1093.5,1082.6,0.15931258]
[1760134498050,0.15952655,1095.9,1082.6,0.15931258]
[1760134498745,0.15955764,1096.2,1082.6,0.15931258]
[1760134499345,0.15963779,1096.5,1082.6,0.15931258]
[1760134499848,0.15963449,1096.6,1082.6,0.15931258]
[1760134500446,0.15930237,1096.9,1082.6,0.15931258]
[1760134500946,0.15863899,1096.0,1082.6,0.15931258]
[1760134505957,11.63961577,1091.9,1077.5,1.6607364]
[1760134506150,2.15548437,1091.7,1077.2,1.6607364]